bitfinex-derivatives/quotes_BTCF0:USTF0_20240815
["timestamp","ask_amount","ask_price","bid_price","bid_amount"]
[1723747959109,0.10566937,57777.0,57776.0,0.00200088]
[1723747959313,0.19219537,57777.0,57776.0,0.00200088]
[1723747959614,0.10566937,57777.0,57776.0,0.00200088]
[1723747960823,0.3608,57784.0,57776.0,0.00200088]
[1723747960824,0.086496,57798.0,57778.0,0.086524]
[1723747961121,0.3608,57798.0,57789.0,0.086508]
[1723747961321,0.3608,57798.0,57785.0,0.3608]
[1723747961516,0.08651,57788.0,57785.0,0.3608]
[1723747961817,0.2236,57817.0,57786.0,0.51916]
[1723747962024,0.3608,57819.0,57811.0,0.086475]
[1723747962025,0.086466,57818.0,57811.0,0.086475]
[1723747962211,0.3608,57819.0,57804.0,0.3608]
[1723747962212,0.3608,57822.0,57810.0,0.3608]
[1723747962406,0.3608,57822.0,57804.0,0.3608]
[1723747962407,0.2236,57813.0,57805.0,0.2778]
[1723747962710,0.086479,57809.0,57807.0,0.086481]
[1723747963318,0.2236,57813.0,57807.0,0.086481]
[1723747963711,0.23396399,57813.0,57807.0,0.086481]
[1723747963908,0.011,57809.0,57807.0,0.087481]
[1723747964308,0.08648,57808.0,57807.0,0.001]
[1723747964517,0.08648,57808.0,57805.0,0.086484]
[1723747964723,0.08648,57808.0,57807.0,0.001]
[1723747964924,0.3608,57809.0,57807.0,0.001]
[1723747965619,0.086476,57811.0,57807.0,0.001]
[1723747965924,0.24496399,57813.0,57807.0,0.087482]
[1723747965925,0.086477,57810.0,57807.0,0.087482]
[1723747966125,0.086477,57810.0,57804.0,0.00025946]
[1723747966126,0.44728,57808.0,57804.0,0.00025946]
[1723747966417,0.310085,57805.0,57804.0,0.00025946]
[1723747966921,0.2236,57805.0,57804.0,0.00025946]
[1723747967223,0.447282,57807.0,57804.0,0.08674546]
[1723747967522,0.447282,57807.0,57805.0,0.086484]
[1723747967821,0.447282,57807.0,57806.0,0.086483]
[1723747967822,0.3608,57807.0,57806.0,0.086483]
[1723747968412,0.37098859,57807.0,57806.0,0.086483]
[1723747968814,0.3608,57807.0,57806.0,0.086483]
[1723747969017,0.37087928,57808.0,57807.0,0.086482]
[1723747969521,0.3608,57808.0,57807.0,0.086482]
[1723747969824,0.44728,57808.0,57807.0,0.086482]
[1723747970332,0.086485,57805.0,57804.0,0.00125946]
[1723747971017,0.310085,57805.0,57804.0,0.00125946]
[1723747971230,0.310085,57805.0,57804.0,0.00025946]
[1723747971414,0.39657,57805.0,57804.0,0.00025946]
[1723747971821,0.40457,57805.0,57804.0,0.00125946]
[1723747972027,1.237085,57805.0,57789.0,0.086508]
[1723747972213,1.237085,57805.0,57785.0,0.3608]
[1723747972214,0.2236,57791.0,57790.0,0.086507]
[1723747972728,0.5844,57798.0,57790.0,0.87992]
[1723747972925,0.5844,57798.0,57790.0,0.3608]
[1723747973117,0.5844,57798.0,57787.0,0.54897932]
[1723747973318,0.2236,57798.0,57787.0,0.54897932]
[1723747973622,0.2236,57798.0,57797.0,0.086497]
[1723747973828,0.3608,57799.0,57798.0,0.086495]
[1723747974126,0.2236,57804.0,57799.0,0.086494]
[1723747974127,0.00025946,57800.0,57799.0,0.086494]
[1723747974519,0.00025946,57800.0,57799.0,0.61603914]
[1723747974728,0.00025946,57800.0,57799.0,0.09699914]
[1723747975114,0.00025946,57800.0,57799.0,0.61603914]
[1723747975750,0.00025946,57800.0,57799.0,1.01603914]
[1723747976929,0.00225946,57800.0,57799.0,1.17603914]
[1723747977124,0.2236,57811.0,57799.0,1.08954514]
[1723747977323,0.2236,57811.0,57807.0,0.3608]
[1723747977628,0.2236,57818.0,57812.0,0.086474]
[1723747978130,0.310066,57818.0,57812.0,0.086474]
[1723747978321,0.01046986,57817.0,57812.0,0.086474]
[1723747979822,0.3678,57813.0,57812.0,0.087474]
[1723747980126,0.540746,57813.0,57812.0,0.001]
[1723747980326,0.540746,57813.0,57812.0,0.002]
[1723747980327,0.463273,57813.0,57812.0,0.002]
[1723747980922,0.08648,57808.0,57807.0,0.00025946]
[1723747981134,0.67088,57808.0,57807.0,0.00025946]
[1723747983026,0.67788,57808.0,57807.0,0.00125946]
[1723747983527,0.87101302,57808.0,57807.0,0.00200001]
[1723747984228,0.69805302,57808.0,57807.0,0.00200001]
[1723747984436,0.68788,57808.0,57807.0,0.00200001]
[1723747984726,0.68788,57808.0,57807.0,0.08848201]
[1723747984727,0.3788,57808.0,57807.0,0.08848201]
[1723747984927,0.018,57808.0,57807.0,1.00744201]
[1723747985117,0.018,57808.0,57807.0,0.08848201]
[1723747985929,0.018,57808.0,57807.0,0.09865477]
[1723747986228,0.011,57808.0,57807.0,0.09865477]
[1723747986421,0.018,57808.0,57807.0,1.01761477]
[1723747986826,0.017,57808.0,57807.0,0.61761477]
[1723747987023,0.01,57808.0,57807.0,0.09765477]
[1723747987233,0.10348,57808.0,57807.0,0.09865477]
[1723747987428,0.017,57808.0,57807.0,0.09865477]
[1723747987830,0.01,57808.0,57807.0,0.09765477]
[1723747988132,0.017,57808.0,57807.0,0.09865477]
[1723747988533,0.007,57808.0,57807.0,0.09765477]
[1723747988833,0.017,57808.0,57807.0,0.09865477]
[1723747989930,0.017,57808.0,57807.0,0.1503302]
[1723747990134,0.017,57808.0,57807.0,0.09865477]
[1723747991732,0.017,57808.0,57807.0,0.61761477]
[1723747992125,0.017,57808.0,57807.0,0.68656255]
[1723747992326,0.017,57808.0,57807.0,1.08656255]
[1723747992537,0.017,57808.0,57807.0,0.68656255]
[1723747992739,0.017,57808.0,57807.0,0.16760255]
[1723747992937,0.32708,57808.0,57807.0,0.08112055]
[1723747993133,0.32708,57808.0,57807.0,0.01217277]
[1723747993736,0.017,57808.0,57807.0,0.09865477]
[1723747994334,0.017,57808.0,57807.0,0.61761477]
[1723747995826,0.017,57808.0,57807.0,0.09865477]
[1723747996027,0.017,57808.0,57807.0,0.61761477]
[1723747996331,0.3608,57817.0,57807.0,1.15761477]
[1723747996528,0.3608,57817.0,57816.0,0.086468]
[1723747997532,0.454267,57817.0,57816.0,0.086468]
[1723747997748,0.3778,57817.0,57816.0,0.087468]
[1723747998834,0.405825,57817.0,57816.0,0.087468]
[1723747999344,0.41025258,57817.0,57816.0,0.088468]
[1723747999734,0.49655958,57817.0,57816.0,0.002]
[1723748000045,0.58302658,57817.0,57816.0,0.002]
[1723748000542,0.49655958,57817.0,57816.0,0.002]
[1723748000938,0.59836059,57817.0,57816.0,0.002]
[1723748001239,0.23772059,57817.0,57816.0,0.002]
[1723748001436,0.13591958,57817.0,57816.0,0.002]
[1723748001637,0.23772059,57817.0,57816.0,0.002]
[1723748002236,0.32425352,57817.0,57816.0,0.002]
[1723748002436,0.22238658,57817.0,57816.0,0.002]
[1723748002944,0.16931143,57817.0,57816.0,0.002]
[1723748003346,0.16931032,57817.0,57816.0,0.002]
[1723748003639,0.49671958,57817.0,57816.0,0.002]
[1723748003945,0.53011038,57817.0,57816.0,0.002]
[1723748004135,0.16931077,57817.0,57816.0,0.002]
[1723748004445,0.16931077,57817.0,57816.0,0.088468]
[1723748004446,0.04945258,57817.0,57816.0,0.088468]
[1723748004639,0.02142758,57817.0,57816.0,0.088468]
[1723748004842,0.12342522,57817.0,57816.0,0.088468]
[1723748005038,0.15145022,57817.0,57816.0,0.088468]
[1723748005341,0.61657704,57817.0,57816.0,0.002]
[1723748006233,0.73282989,57817.0,57816.0,0.002]
[1723748010159,0.086496,57797.0,57796.0,0.05173619]
[1723748010446,0.58544001,57798.0,57795.0,0.2494]
[1723748010656,0.086498,57796.0,57795.0,0.30113619]
[1723748011447,0.086498,57796.0,57795.0,0.2494]
[1723748011640,0.086498,57796.0,57795.0,0.2524]
[1723748012649,0.086498,57796.0,57795.0,0.2564]
[1723748013055,0.36184001,57798.0,57797.0,0.086496]
[1723748013239,0.00025946,57802.0,57801.0,0.08649]
[1723748013640,0.00025946,57802.0,57801.0,1.00549]
[1723748014240,1e-08,57802.0,57801.0,1.16096326]
[1723748014443,0.086479,57809.0,57801.0,1.13695468]
[1723748014654,0.086479,57809.0,57808.0,0.08648]
[1723748014853,0.086479,57809.0,57806.0,0.05173778]
[1723748014854,0.1794,57809.0,57806.0,0.05173778]
[1723748015053,0.1794,57809.0,57805.0,0.05173778]
[1723748015259,0.1794,57809.0,57808.0,0.08648]
[1723748015451,0.1794,57809.0,57805.0,0.05173778]
[1723748015452,0.086474,57812.0,57810.0,0.086477]
[1723748015944,0.00025946,57813.0,57812.0,0.086474]
[1723748016147,0.08673246,57813.0,57812.0,0.086474]
[1723748017349,0.086482,57807.0,57806.0,0.001]
[1723748017554,0.447282,57807.0,57806.0,0.087483]
[1723748017755,0.3608,57807.0,57806.0,0.087483]
[1723748018054,0.086477,57810.0,57809.0,0.086479]
[1723748018250,0.1824,57812.0,57811.0,0.086476]
[1723748018649,0.003,57812.0,57811.0,0.086476]
[1723748018851,0.003,57812.0,57811.0,0.349176]
[1723748019149,0.1794,57812.0,57811.0,0.086476]
[1723748020057,0.01028242,57817.0,57811.0,0.83078371]
[1723748020243,0.42861676,57825.0,57811.0,0.83078371]
[1723748020244,0.086464,57820.0,57819.0,0.086463]
[1723748020753,0.086464,57820.0,57817.0,0.05172714]
[1723748020754,0.06116779,57823.0,57817.0,0.05172714]
[1723748020943,0.086465,57818.0,57816.0,0.447267]
[1723748021150,0.1794,57819.0,57816.0,0.41252523]
[1723748021151,0.086467,57817.0,57816.0,0.41252523]
[1723748021351,0.1794,57819.0,57815.0,0.05172523]
[1723748021352,0.086468,57816.0,57815.0,0.05172523]
[1723748021556,0.086468,57816.0,57813.0,0.086471]
[1723748021557,0.086471,57814.0,57813.0,0.086471]
[1723748022549,0.003,57818.0,57817.0,0.086467]
[1723748022755,0.01337225,57818.0,57817.0,0.086467]
[1723748023263,0.08647,57815.0,57813.0,0.001]
[1723748024159,0.08647,57815.0,57814.0,0.086471]
[1723748024659,0.01037225,57818.0,57817.0,0.086467]
[1723748024853,0.1794,57819.0,57818.0,0.086465]
[1723748025248,0.086468,57816.0,57815.0,0.086468]
[1723748027055,0.086468,57816.0,57815.0,0.087468]
[1723748027544,0.086468,57816.0,57815.0,0.002]
[1723748027745,0.259404,57816.0,57815.0,0.002]
[1723748027953,0.086474,57812.0,57811.0,0.00025946]
[1723748028363,0.23014306,57817.0,57811.0,0.00025946]
[1723748028546,0.086471,57815.0,57814.0,0.086471]
[1723748028959,0.13721406,57815.0,57814.0,0.086471]
[1723748029561,0.086391,57815.0,57814.0,0.086471]
[1723748029759,0.05074306,57816.0,57815.0,0.08647]
[1723748029960,0.23014306,57817.0,57816.0,0.086468]
[1723748030449,0.24721676,57817.0,57814.0,0.001]
[1723748030850,0.08647,57815.0,57814.0,0.001]
[1723748031051,0.17294,57815.0,57814.0,0.001]
[1723748031453,0.24075676,57815.0,57814.0,0.001]
[1723748032252,0.24075676,57815.0,57811.0,0.00025946]
[1723748032253,0.172948,57812.0,57811.0,0.00025946]
[1723748032454,0.352348,57812.0,57811.0,0.00025946]
[1723748032761,0.265874,57812.0,57811.0,0.00025946]
[1723748033162,0.31659093,57812.0,57811.0,0.00025946]
[1723748033554,0.31659093,57812.0,57811.0,0.08673546]
[1723748033555,0.265874,57812.0,57811.0,0.08673546]
[1723748034063,0.265874,57812.0,57811.0,0.00125946]
[1723748034064,0.872268,57812.0,57811.0,0.00125946]
[1723748034248,0.872268,57812.0,57796.0,0.05172523]
[1723748034249,0.086482,57807.0,57796.0,0.05172523]
[1723748034453,0.086499,57795.0,57794.0,0.3608]
[1723748034653,0.086499,57795.0,57794.0,0.447301]
[1723748036160,0.086499,57795.0,57794.0,0.451301]
[1723748037167,0.086499,57795.0,57794.0,0.52527272]
[1723748037369,0.086499,57795.0,57794.0,0.43877172]
[1723748037663,0.086507,57790.0,57789.0,0.00025946]
[1723748037865,0.713214,57790.0,57789.0,0.00025946]
[1723748038368,0.713214,57790.0,57789.0,1e-08]
[1723748038761,0.714214,57790.0,57789.0,0.00100001]
[1723748039270,0.714214,57790.0,57776.0,0.28973425]
[1723748039271,0.086524,57779.0,57777.0,0.086526]
[1723748039762,0.086526,57777.0,57776.0,0.23800088]
[1723748040358,0.086526,57777.0,57776.0,8.8e-07]
[1723748040959,0.088526,57777.0,57776.0,8.8e-07]
[1723748041465,0.002,57777.0,57776.0,0.08652888]
[1723748041665,0.002,57779.0,57778.0,0.086525]
[1723748041968,0.086523,57779.0,57778.0,0.086525]
[1723748042363,0.086526,57777.0,57776.0,0.00200088]
[1723748042761,0.086526,57777.0,57776.0,0.00100088]
[1723748043569,0.086526,57777.0,57776.0,0.08652888]
[1723748043772,0.091526,57777.0,57776.0,0.08652888]
[1723748044468,0.091526,57777.0,57776.0,0.08640888]
[1723748044859,0.093526,57777.0,57776.0,0.08640888]
[1723748045269,0.091526,57777.0,57776.0,0.08640888]
[1723748046672,0.005,57777.0,57776.0,0.08640888]
[1723748047163,0.00025946,57782.0,57781.0,0.08652]
[1723748047369,0.00025946,57782.0,57781.0,0.44732]
[1723748047868,0.00025946,57782.0,57781.0,4.21732]
[1723748048058,0.086506,57791.0,57789.0,0.086507]
[1723748048265,0.086507,57790.0,57789.0,0.086507]
[1723748048472,0.086503,57793.0,57786.0,0.3608]
[1723748048663,0.086504,57792.0,57791.0,0.3608]
[1723748049175,0.086487,57804.0,57798.0,0.086495]
[1723748049363,0.086492,57800.0,57798.0,0.086495]
[1723748049562,0.086493,57799.0,57798.0,0.086495]
[1723748049976,0.086488,57803.0,57793.0,0.086502]
[1723748050272,0.086488,57803.0,57793.0,0.09664591]
[1723748050468,0.086488,57803.0,57796.0,0.3608]
[1723748050669,0.086488,57803.0,57797.0,0.2152]
[1723748050968,1e-08,57805.0,57804.0,0.086486]
[1723748051174,0.086478,57810.0,57804.0,0.00871944]
[1723748051365,0.3608,57817.0,57801.0,0.3608]
[1723748051366,0.37100375,57814.0,57801.0,0.3608]
[1723748051564,0.086477,57811.0,57802.0,3.77]
[1723748051766,0.086477,57811.0,57802.0,3.77863462]
[1723748051968,0.086477,57811.0,57809.0,0.086477]
[1723748052167,0.086477,57811.0,57802.0,3.77863462]
[1723748052476,0.37100375,57814.0,57807.0,0.3608]
[1723748052477,0.001,57810.0,57807.0,0.3608]
[1723748052669,0.001,57810.0,57809.0,0.086478]
[1723748053276,0.0002586,57812.0,57811.0,0.086476]
[1723748054869,0.0002586,57812.0,57811.0,0.087476]
[1723748056166,0.0002586,57812.0,57811.0,0.09887798]
[1723748056167,0.0022586,57812.0,57811.0,0.09887798]
[1723748059480,0.0022186,57812.0,57811.0,0.09887798]
[1723748063480,0.0022186,57812.0,57811.0,1.46507398]
[1723748063676,0.086449,57829.0,57827.0,0.08645]
[1723748063980,0.0101364,57831.0,57820.0,0.3608]
[1723748064178,0.086454,57826.0,57817.0,0.3608]
[1723748064480,0.086454,57826.0,57825.0,0.3608]
[1723748065274,0.003,57829.0,57828.0,0.08645]
[1723748065478,0.089449,57829.0,57828.0,0.08645]
[1723748065672,0.086452,57827.0,57825.0,0.3618]
[1723748065888,0.003,57826.0,57825.0,0.3628]
[1723748066274,0.089453,57826.0,57825.0,0.002]
[1723748066685,0.450253,57826.0,57825.0,0.002]
[1723748067478,0.447253,57826.0,57824.0,0.086456]
[1723748067782,0.45758772,57826.0,57825.0,0.086455]
[1723748068175,0.45758772,57826.0,57825.0,0.088455]
[1723748068380,0.37113472,57826.0,57825.0,0.088455]
[1723748068686,0.01033472,57826.0,57825.0,0.087455]
[1723748068979,0.086447,57830.0,57828.0,0.086449]
[1723748070378,0.086449,57829.0,57828.0,0.087449]
[1723748071182,0.086449,57829.0,57828.0,0.088449]
[1723748071374,0.086449,57829.0,57828.0,0.087449]
[1723748071573,0.087449,57829.0,57828.0,0.087449]
[1723748071771,0.173898,57829.0,57828.0,0.002]
[1723748071974,0.353298,57829.0,57828.0,0.002]
[1723748073486,0.086467,57817.0,57816.0,0.00025946]
[1723748074175,0.18833506,57817.0,57816.0,0.00025946]
[1723748074378,0.02802475,57817.0,57816.0,0.08672746]
[1723748074586,0.086464,57819.0,57818.0,0.086465]
[1723748074787,0.14787714,57819.0,57818.0,0.086465]
[1723748075088,0.14787714,57819.0,57818.0,0.43861851]
[1723748075089,0.02802477,57819.0,57818.0,0.43861851]
[1723748075386,0.0280222,57821.0,57818.0,0.3608]
[1723748075683,0.20270885,57824.0,57819.0,0.086464]
[1723748075684,0.0280222,57820.0,57819.0,0.086464]
[1723748075879,0.11448298,57821.0,57818.0,0.3618]
[1723748076080,0.02802198,57820.0,57819.0,0.086464]
[1723748076281,0.086456,57824.0,57821.0,0.086459]
[1723748076282,0.086458,57823.0,57821.0,0.086459]
[1723748076478,0.11625285,57824.0,57821.0,0.172922]
[1723748076479,0.06140529,57822.0,57821.0,0.172922]
[1723748076789,0.01028619,57824.0,57821.0,0.172922]
[1723748076790,0.08468709,57824.0,57823.0,0.086458]
[1723748077087,0.08469628,57832.0,57823.0,0.16]
[1723748077390,0.067763,57833.0,57832.0,0.086444]
[1723748077688,0.10163475,57844.0,57843.0,0.086428]
[1723748077877,0.10163475,57847.0,57846.0,0.086423]
[1723748078077,0.2368936,57862.0,57846.0,3.77]
[1723748078078,0.10163475,57853.0,57846.0,3.77]
[1723748078279,0.18804275,57856.0,57852.0,0.447214]
[1723748078482,0.10163475,57858.0,57854.0,0.3608]
[1723748078683,0.10163475,57858.0,57857.0,0.086407]
[1723748079086,0.10152714,57865.0,57857.0,1.09792]
[1723748079380,0.10152714,57874.0,57864.0,0.7216]
[1723748079583,0.10152714,57876.0,57869.0,0.3608]
[1723748079789,0.10152714,57876.0,57869.0,0.447189]
[1723748079984,0.10152714,57876.0,57869.0,0.3608]
[1723748079985,0.086381,57874.0,57869.0,0.3608]
[1723748080383,0.086376,57878.0,57869.0,0.3608]
[1723748080584,0.49151784,57882.0,57877.0,0.447177]
[1723748080780,0.49039783,57882.0,57877.0,0.086377]
[1723748081275,0.002,57874.0,57872.0,0.086384]
[1723748081480,0.002,57874.0,57873.0,0.447183]
[1723748082483,0.003,57874.0,57873.0,0.448183]
[1723748082889,0.089381,57874.0,57873.0,0.3618]
[1723748083087,0.087381,57874.0,57873.0,0.3618]
[1723748084078,0.003,57874.0,57873.0,0.449183]
[1723748086089,0.001,57874.0,57873.0,0.448183]
[1723748086282,0.001,57874.0,57873.0,0.449183]
[1723748086283,0.003,57874.0,57873.0,0.449183]
[1723748086488,0.002,57874.0,57873.0,0.448183]
[1723748086690,0.003,57874.0,57873.0,0.449183]
[1723748087091,0.003,57874.0,57873.0,1.367543]
[1723748087397,0.003,57874.0,57873.0,0.967543]
[1723748088098,0.003,57874.0,57873.0,0.449183]
[1723748088681,0.089381,57874.0,57873.0,0.002]
[1723748088889,0.086387,57870.0,57867.0,0.00025924]
[1723748089096,0.08639,57868.0,57857.0,0.086406]
[1723748089394,0.086401,57861.0,57853.0,0.59510898]
[1723748089596,0.19055413,57860.0,57857.0,0.086406]
[1723748089794,0.19055413,57859.0,57853.0,0.37208898]
[1723748089999,0.3608,57862.0,57846.0,0.00088]
[1723748090000,0.3608,57855.0,57846.0,0.00088]
[1723748090181,0.3608,57855.0,57836.0,0.3608]
[1723748090182,0.086428,57843.0,57836.0,0.3608]
[1723748090382,0.14830439,57842.0,57841.0,0.086431]
[1723748090580,0.14830439,57842.0,57841.0,0.226431]
[1723748090788,0.14830439,57842.0,57841.0,0.086431]
[1723748091189,0.14830439,57842.0,57838.0,0.086435]
[1723748091393,0.14830439,57841.0,57838.0,0.086435]
[1723748091594,0.14830439,57840.0,57838.0,0.086435]
[1723748091792,0.14830439,57839.0,57836.0,0.37117473]
[1723748091999,0.14830439,57838.0,57836.0,0.37117473]
[1723748092296,0.14830439,57837.0,57836.0,0.45761273]
[1723748093198,0.14830439,57837.0,57836.0,0.46161273]
[1723748093700,0.14830439,57837.0,57836.0,0.45961273]
[1723748094199,0.14830439,57837.0,57836.0,0.3020973]
[1723748094900,0.14833783,57837.0,57836.0,0.3020973]
[1723748095595,0.14833783,57837.0,57836.0,1.01753273]
[1723748095802,0.14833783,57837.0,57836.0,1.01653273]
[1723748096001,0.14833783,57837.0,57836.0,0.401]
[1723748096302,0.11496649,57837.0,57836.0,0.086438]
[1723748096497,0.11496649,57837.0,57836.0,0.0978082]
[1723748096999,0.10255751,57837.0,57836.0,1.1765282]
[1723748097196,0.001,57837.0,57836.0,0.2568082]
[1723748097399,0.001,57837.0,57836.0,1.1755282]
[1723748097593,0.001,57837.0,57836.0,0.6155282]
[1723748098093,0.001,57837.0,57836.0,1.0155282]
[1723748098599,0.001,57837.0,57836.0,0.0968082]
[1723748098802,0.00025924,57842.0,57836.0,0.0978082]
[1723748099102,0.17981292,57840.0,57836.0,0.0978082]
[1723748099804,0.001,57837.0,57836.0,0.1078082]
[1723748100196,0.001,57837.0,57836.0,0.15910128]
[1723748100391,0.00025924,57842.0,57841.0,0.086431]
[1723748100591,0.3608,57856.0,57846.0,0.086423]
[1723748100791,0.17981292,57849.0,57844.0,0.05128435]
[1723748101093,0.17981292,57842.0,57840.0,0.05128435]
[1723748101299,0.086432,57840.0,57839.0,0.05128435]
[1723748101496,0.54061292,57840.0,57837.0,0.05128435]
[1723748101690,0.086435,57838.0,57837.0,0.05128435]
[1723748101892,0.086435,57838.0,57836.0,0.0123702]
[1723748101893,0.172874,57837.0,57836.0,0.003]
[1723748102103,0.172874,57837.0,57833.0,0.00017428]
[1723748102104,0.086441,57834.0,57833.0,0.00017428]
[1723748102402,0.35269492,57834.0,57833.0,0.00017428]
[1723748102708,0.35269492,57834.0,57819.0,0.06837926]
[1723748102709,0.086456,57824.0,57821.0,0.05128435]
[1723748103095,0.17981292,57822.0,57820.0,0.42071927]
[1723748103300,0.17981292,57821.0,57820.0,0.36943492]
[1723748104301,0.26627392,57821.0,57820.0,0.01030313]
[1723748104491,0.26627392,57821.0,57817.0,0.00025924]
[1723748104492,0.62707392,57821.0,57817.0,0.00898664]
[1723748104696,0.17981292,57818.0,57817.0,0.00898664]
[1723748104904,0.17995738,57818.0,57817.0,0.09545364]
[1723748105806,0.00014446,57818.0,57817.0,0.09545364]
[1723748105997,0.3608,57827.0,57818.0,0.51888]
[1723748106197,0.3608,57834.0,57827.0,0.086452]
[1723748106899,0.18007216,57828.0,57827.0,0.086452]
[1723748107109,0.18007216,57828.0,57827.0,3.856452]
[1723748107303,0.18007216,57828.0,57827.0,0.086452]
[1723748108203,0.18107216,57828.0,57827.0,0.086452]
[1723748109108,0.18107216,57828.0,57827.0,0.09655227]
[1723748109307,0.447231,57841.0,57838.0,0.086435]
[1723748109499,0.17981292,57836.0,57834.0,0.585]
[1723748109699,0.17981292,57837.0,57836.0,0.086438]
[1723748110929,0.086426,57844.0,57842.0,0.086428]
[1723748111212,0.17981292,57839.0,57838.0,0.086435]
[1723748111908,0.004,57841.0,57840.0,0.086432]
[1723748112097,0.14059215,57842.0,57836.0,0.06462231]
[1723748112298,0.14059215,57842.0,57841.0,0.086431]
[1723748112606,0.086435,57838.0,57836.0,0.01327137]
[1723748113203,0.002,57839.0,57838.0,0.086435]
[1723748113408,0.14059215,57839.0,57838.0,0.086435]
[1723748113599,0.3608,57843.0,57842.0,0.086429]
[1723748114001,0.5651,57854.0,57850.0,0.086416]
[1723748114201,0.447211,57854.0,57851.0,0.086415]
[1723748114397,0.3608,57854.0,57853.0,0.086413]
[1723748114604,0.3608,57854.0,57851.0,0.00853736]
[1723748114605,0.14059215,57852.0,57851.0,0.09495336]
[1723748116001,0.14059215,57852.0,57851.0,0.09595336]
[1723748116505,0.14059215,57852.0,57851.0,0.00953736]
[1723748116708,1.07422015,57852.0,57851.0,0.001]
[1723748117403,0.14059215,57852.0,57851.0,0.087416]
[1723748117906,0.14759215,57852.0,57851.0,0.088416]
[1723748118111,0.14759215,57852.0,57851.0,0.09685302]
[1723748118313,0.007,57852.0,57851.0,0.18326902]
[1723748118498,0.3608,57860.0,57859.0,0.086404]
[1723748118902,0.58779415,57860.0,57859.0,0.086404]
[1723748119098,0.69201345,57860.0,57859.0,0.06773591]
[1723748120011,0.5514213,57860.0,57859.0,0.06773591]
[1723748120309,0.16901541,57860.0,57859.0,0.32513991]
[1723748120499,0.25124417,57860.0,57859.0,0.06873591]
[1723748120708,0.25124417,57860.0,57859.0,1.22261991]
[1723748120709,0.02099394,57860.0,57859.0,1.22261991]
[1723748120905,0.19611704,57860.0,57859.0,1.22261991]
[1723748121302,0.16711704,57862.0,57861.0,0.086401]
[1723748121510,0.15065186,57862.0,57861.0,0.567002]
[1723748121708,0.18709869,57867.0,57866.0,0.086393]
[1723748121913,0.18709869,57868.0,57867.0,0.086392]
[1723748122212,0.3608,57869.0,57868.0,0.08639]
[1723748123110,0.18685877,57871.0,57870.0,0.172774]
[1723748123409,0.15272165,57873.0,57872.0,0.086384]
[1723748123607,0.15272165,57876.0,57874.0,0.086381]
[1723748123809,0.3788,57901.0,57876.0,0.086378]
[1723748123810,0.18685877,57884.0,57876.0,0.086378]
[1723748124008,0.18685877,57884.0,57881.0,0.447171]
[1723748124207,0.18685877,57889.0,57881.0,0.447171]
[1723748124410,0.18685877,57889.0,57881.0,0.965491]
[1723748124604,0.18685877,57889.0,57881.0,1.365491]
[1723748124809,0.086358,57890.0,57881.0,1.004691]
[1723748125205,0.3608,57887.0,57881.0,0.086371]
[1723748125412,0.98139215,57882.0,57876.0,0.00125924]
[1723748125617,0.14059215,57877.0,57876.0,0.00125924]
[1723748125814,0.19358486,57877.0,57876.0,0.00125924]
[1723748127114,0.14059215,57877.0,57874.0,0.00844196]
[1723748127313,0.14059215,57874.0,57869.0,0.585]
[1723748127512,0.24192582,57871.0,57869.0,0.2242]
[1723748128024,0.14059215,57871.0,57870.0,0.086387]
[1723748128216,0.2418763,57871.0,57870.0,0.086387]
[1723748128520,0.14059215,57871.0,57870.0,0.086387]
[1723748128821,0.2418763,57871.0,57870.0,0.086387]
[1723748129019,0.14059215,57871.0,57870.0,0.086387]
[1723748129319,0.10128415,57872.0,57871.0,0.086386]
[1723748129908,0.72185924,57876.0,57869.0,0.2428136]
[1723748130115,0.3608,57870.0,57869.0,0.3292026]
[1723748130317,0.50139215,57870.0,57869.0,0.3292026]
[1723748131116,0.50139215,57870.0,57869.0,0.01004119]
[1723748131322,0.50139215,57870.0,57866.0,0.00856596]
[1723748131518,0.3608,57870.0,57866.0,0.256393]
[1723748131711,0.60248324,57870.0,57869.0,0.310589]
[1723748131915,0.14059215,57870.0,57869.0,0.310589]
[1723748132229,0.24168482,57870.0,57869.0,0.310589]
[1723748132520,0.14059215,57870.0,57869.0,0.31918088]
[1723748132724,0.24168482,57870.0,57869.0,0.31918088]
[1723748132922,0.10109267,57870.0,57869.0,0.31918088]
[1723748133225,0.36105924,57876.0,57873.0,0.086383]
[1723748133430,0.03335295,57875.0,57873.0,0.086383]
[1723748133611,0.1739451,57874.0,57873.0,0.086383]
[1723748134429,0.14059215,57874.0,57873.0,0.086383]
[1723748134622,0.14051215,57874.0,57873.0,0.086383]
[1723748135123,0.14051215,57874.0,57869.0,0.00859188]
[1723748135329,0.3618,57875.0,57869.0,0.086389]
[1723748135330,0.50131215,57870.0,57869.0,0.086389]
[1723748135516,0.3608,57870.0,57869.0,0.48901326]
[1723748135714,0.3608,57870.0,57869.0,0.31901326]
[1723748136523,0.3618,57870.0,57869.0,0.31901326]
[1723748137027,0.3618,57870.0,57869.0,1.39741326]
[1723748137028,0.001,57870.0,57869.0,1.39741326]
[1723748137222,0.001,57870.0,57869.0,1.53538836]
[1723748137423,0.001,57870.0,57869.0,1.48380226]
[1723748137815,0.001,57870.0,57869.0,1.53538836]
[1723748138127,0.00025924,57876.0,57875.0,0.08638]
[1723748138323,0.00025924,57876.0,57875.0,0.40154147]
[1723748138523,0.48,57882.0,57881.0,0.086371]
[1723748138725,0.48,57882.0,57881.0,0.841371]
[1723748138923,0.472,57882.0,57881.0,5.529691]
[1723748139127,0.468537,57904.0,57881.0,5.57484339]
[1723748139424,0.086342,57901.0,57897.0,0.086347]
[1723748139634,0.14051215,57898.0,57897.0,0.086347]
[1723748141626,0.14051215,57898.0,57897.0,0.09920891]
[1723748141822,0.14051215,57898.0,57897.0,0.10020891]
[1723748142233,0.14151215,57898.0,57897.0,0.10120891]
[1723748142826,0.14151215,57898.0,57897.0,0.10020891]
[1723748143023,0.14151215,57898.0,57897.0,0.01486191]
[1723748143024,0.14251215,57898.0,57897.0,0.01486191]